[Event "Titled Tuesday Blitz May 9 Early 2023"]
[White "Schut, Han"]
[Black "Sanhueza, Cristian"]
[WhiteFideId "1005561"]
[BlackFideId "116815"]
[WhiteElo "2024"]
[BlackElo "2174"]
[Result "0-1"]
[Round "09"]
[TimeControl "180+2"]
[Date "2023.05.09"]
[WhiteClock "0:00:16"]
[BlackClock "0:00:36"]

1. e4 {[%clk 0:02:49]}  e5 {[%clk 0:02:59]} 2. Nf3 {[%clk 0:02:48]}  Nc6 {[%clk 0:03:00]} 3. Bc4 {[%clk 0:02:48]}  Bc5 {[%clk 0:02:59]} 4. c3 {[%clk 0:02:49]}  Nf6 {[%clk 0:02:59]} 5. d4 {[%clk 0:02:49]}  exd4 {[%clk 0:03:00]} 6. b4 {[%clk 0:02:49]}  Bb6 {[%clk 0:02:57]} 7. e5 {[%clk 0:02:50]}  d5 {[%clk 0:02:56]} 8. exf6 {[%clk 0:02:50]}  dxc4 {[%clk 0:02:56]} 9. Qe2+ {[%clk 0:02:50]}  Be6 {[%clk 0:02:56]} 10. b5 {[%clk 0:02:50]}  Qxf6 {[%clk 0:02:45]} 11. bxc6 {[%clk 0:02:41]}  O-O {[%clk 0:02:41]} 12. O-O {[%clk 0:02:11]}  d3 {[%clk 0:02:35]} 13. Qe5 {[%clk 0:02:08]}  bxc6 {[%clk 0:02:13]} 14. Qxf6 {[%clk 0:02:06]}  gxf6 {[%clk 0:02:14]} 15. Be3 {[%clk 0:01:55]}  Bxe3 {[%clk 0:01:50]} 16. fxe3 {[%clk 0:01:55]}  Rab8 {[%clk 0:01:51]} 17. Nbd2 {[%clk 0:01:48]}  Rb2 {[%clk 0:01:50]} 18. Rfb1 {[%clk 0:01:39]}  Rfb8 {[%clk 0:01:49]} 19. Kf2 {[%clk 0:01:18]}  Bd5 {[%clk 0:01:40]} 20. Ke1 {[%clk 0:01:15]}  a5 {[%clk 0:01:26]} 21. Kd1 {[%clk 0:01:07]}  c5 {[%clk 0:00:59]} 22. Kc1 {[%clk 0:00:58]}  Rxb1+ {[%clk 0:01:00]} 23. Rxb1 {[%clk 0:00:58]}  Re8 {[%clk 0:01:00]} 24. e4 {[%clk 0:00:40]}  Bxe4 {[%clk 0:01:01]} 25. Nxc4 {[%clk 0:00:36]}  d2+ {[%clk 0:00:58]} 26. Ncxd2 {[%clk 0:00:19]}  Bxb1 {[%clk 0:00:58]} 27. Kxb1 {[%clk 0:00:19]}  Re2 {[%clk 0:00:57]} 28. g3 {[%clk 0:00:19]}  Rf2 {[%clk 0:00:55]} 29. Kc2 {[%clk 0:00:19]}  Kg7 {[%clk 0:00:53]} 30. Kd3 {[%clk 0:00:19]}  f5 {[%clk 0:00:46]} 31. Ke3 {[%clk 0:00:19]}  Rg2 {[%clk 0:00:45]} 32. Nh4 {[%clk 0:00:18]}  Rxh2 {[%clk 0:00:44]} 33. Nxf5+ {[%clk 0:00:18]}  Kf6 {[%clk 0:00:45]} 34. g4 {[%clk 0:00:17]}  Rh3+ {[%clk 0:00:44]} 35. Nf3 {[%clk 0:00:16]}  h5 {[%clk 0:00:42]} 36. Kf4 {[%clk 0:00:15]}  hxg4 {[%clk 0:00:40]} 37. Kxg4 {[%clk 0:00:15]}  Rxf3 {[%clk 0:00:40]} 38. Kxf3 {[%clk 0:00:15]}  Kxf5 {[%clk 0:00:40]} 39. Ke3 {[%clk 0:00:16]}  Ke5 {[%clk 0:00:36]} 40. Kd3 {[%clk 0:00:16]} 0-1


[Site "https://www.chess.com"]

[Event "Titled Tuesday Blitz May 9 Early 2023"]
[White "Jaivardhan Raj"]
[Black "Jovic, Stanoje"]
[WhiteFideId "25744437"]
[BlackFideId "905020"]
[WhiteElo "1772"]
[BlackElo "2236"]
[Result "0-1"]
[Round "09"]
[TimeControl "180+2"]
[Date "2023.05.09"]
[WhiteClock "0:00:02"]
[BlackClock "0:00:28"]

1. e4 {[%clk 0:03:00]}  c6 {[%clk 0:02:59]} 2. d4 {[%clk 0:03:00]}  d5 {[%clk 0:02:59]} 3. Nd2 {[%clk 0:03:00]}  dxe4 {[%clk 0:02:59]} 4. Nxe4 {[%clk 0:03:00]}  Nf6 {[%clk 0:03:00]} 5. Nxf6+ {[%clk 0:02:58]}  exf6 {[%clk 0:03:00]} 6. c3 {[%clk 0:02:57]}  Bd6 {[%clk 0:03:00]} 7. Bd3 {[%clk 0:02:56]}  O-O {[%clk 0:03:00]} 8. Qc2 {[%clk 0:02:55]}  h5 {[%clk 0:02:58]} 9. Ne2 {[%clk 0:02:55]}  Qc7 {[%clk 0:02:58]} 10. Be3 {[%clk 0:02:55]}  Re8 {[%clk 0:02:53]} 11. O-O-O {[%clk 0:02:54]}  c5 {[%clk 0:02:52]} 12. dxc5 {[%clk 0:02:52]}  Bxc5 {[%clk 0:02:52]} 13. Bxc5 {[%clk 0:02:46]}  Qxc5 {[%clk 0:02:52]} 14. Ng3 {[%clk 0:02:42]}  Nc6 {[%clk 0:02:44]} 15. Ne4 {[%clk 0:02:40]}  Qa5 {[%clk 0:02:39]} 16. Kb1 {[%clk 0:02:39]}  Be6 {[%clk 0:02:34]} 17. b3 {[%clk 0:02:32]}  Ne5 {[%clk 0:02:31]} 18. Nd6 {[%clk 0:02:23]}  Nxd3 {[%clk 0:02:23]} 19. Rxd3 {[%clk 0:02:01]}  Bf5 {[%clk 0:02:05]} 20. Nxf5 {[%clk 0:01:52]}  Qxf5 {[%clk 0:02:05]} 21. Rhd1 {[%clk 0:01:52]}  a5 {[%clk 0:01:55]} 22. R3d2 {[%clk 0:01:42]}  Qg5 {[%clk 0:01:48]} 23. f3 {[%clk 0:01:19]}  a4 {[%clk 0:01:46]} 24. Rd7 {[%clk 0:01:12]}  Qb5 {[%clk 0:01:36]} 25. c4 {[%clk 0:00:57]}  axb3 {[%clk 0:01:31]} 26. Qxb3 {[%clk 0:00:43]}  Qf5+ {[%clk 0:01:21]} 27. Qd3 {[%clk 0:00:23]}  Qa5 {[%clk 0:01:20]} 28. Qb3 {[%clk 0:00:17]}  Re1 {[%clk 0:01:10]} 29. Rxe1 {[%clk 0:00:12]}  Qxe1+ {[%clk 0:01:09]} 30. Rd1 {[%clk 0:00:13]}  Qe2 {[%clk 0:01:04]} 31. g3 {[%clk 0:00:09]}  Qxh2 {[%clk 0:01:00]} 32. Rc1 {[%clk 0:00:06]}  Qxg3 {[%clk 0:00:56]} 33. c5 {[%clk 0:00:04]}  Qc7 {[%clk 0:00:45]} 34. Qb6 {[%clk 0:00:03]}  Qxb6+ {[%clk 0:00:39]} 35. cxb6 {[%clk 0:00:04]}  Ra6 {[%clk 0:00:39]} 36. Rc8+ {[%clk 0:00:03]}  Kh7 {[%clk 0:00:39]} 37. Rc7 {[%clk 0:00:04]}  Rxb6+ {[%clk 0:00:39]} 38. Ka1 {[%clk 0:00:05]}  Kg6 {[%clk 0:00:38]} 39. a4 {[%clk 0:00:04]}  h4 {[%clk 0:00:37]} 40. a5 {[%clk 0:00:05]}  Rb5 {[%clk 0:00:36]} 41. a6 {[%clk 0:00:05]}  bxa6 {[%clk 0:00:35]} 42. Rc4 {[%clk 0:00:06]}  Kh5 {[%clk 0:00:33]} 43. Ra4 {[%clk 0:00:06]}  a5 {[%clk 0:00:32]} 44. Rg4 {[%clk 0:00:06]}  g5 {[%clk 0:00:32]} 45. Rg1 {[%clk 0:00:06]}  f5 {[%clk 0:00:32]} 46. Rh1 {[%clk 0:00:06]}  g4 {[%clk 0:00:32]} 47. fxg4+ {[%clk 0:00:05]}  fxg4 {[%clk 0:00:32]} 48. Ka2 {[%clk 0:00:06]}  g3 {[%clk 0:00:32]} 49. Ka3 {[%clk 0:00:06]}  g2 {[%clk 0:00:33]} 50. Rg1 {[%clk 0:00:06]}  h3 {[%clk 0:00:33]} 51. Ka4 {[%clk 0:00:05]}  Rg5 {[%clk 0:00:33]} 52. Ra1 {[%clk 0:00:03]}  g1=Q {[%clk 0:00:31]} 53. Rxg1 {[%clk 0:00:03]}  Rxg1 {[%clk 0:00:31]} 54. Kxa5 {[%clk 0:00:04]}  h2 {[%clk 0:00:31]} 55. Ka6 {[%clk 0:00:04]}  h1=Q {[%clk 0:00:30]} 56. Ka7 {[%clk 0:00:02]}  Qc6 {[%clk 0:00:28]} 57. Kb8 {[%clk 0:00:02]}  Rb1+ {[%clk 0:00:28]} 58. Ka7 {[%clk 0:00:02]}  Qb7# {[%clk 0:00:28]} 0-1


[Site "https://www.chess.com"]

[Event "Titled Tuesday Blitz May 9 Early 2023"]
[White "micke12a"]
[Black "Reprintsev, Alexander"]
[BlackFideId "14100541"]
[WhiteElo "2381"]
[BlackElo "2218"]
[Result "0-1"]
[Round "09"]
[TimeControl "180+2"]
[Date "2023.05.09"]
[WhiteClock "0:00:01"]
[BlackClock "0:00:35"]

1. e4 {[%clk 0:03:00]}  d5 {[%clk 0:02:59]} 2. exd5 {[%clk 0:02:59]}  Qxd5 {[%clk 0:02:59]} 3. Nf3 {[%clk 0:02:59]}  Bg4 {[%clk 0:02:58]} 4. Be2 {[%clk 0:02:59]}  Nc6 {[%clk 0:02:58]} 5. Nc3 {[%clk 0:02:58]}  Qd7 {[%clk 0:02:57]} 6. h3 {[%clk 0:02:58]}  Bf5 {[%clk 0:02:57]} 7. d3 {[%clk 0:02:56]}  e5 {[%clk 0:02:57]} 8. O-O {[%clk 0:02:56]}  O-O-O {[%clk 0:02:56]} 9. Re1 {[%clk 0:02:51]}  f6 {[%clk 0:02:53]} 10. Bf1 {[%clk 0:02:51]}  g5 {[%clk 0:02:52]} 11. Be3 {[%clk 0:02:42]}  h5 {[%clk 0:02:52]} 12. Nd2 {[%clk 0:02:37]}  Be7 {[%clk 0:02:36]} 13. Be2 {[%clk 0:02:27]}  Be6 {[%clk 0:02:35]} 14. Nde4 {[%clk 0:02:11]}  g4 {[%clk 0:02:32]} 15. h4 {[%clk 0:01:50]}  f5 {[%clk 0:02:31]} 16. Nc5 {[%clk 0:01:49]}  Bxc5 {[%clk 0:02:30]} 17. Bxc5 {[%clk 0:01:50]}  Nf6 {[%clk 0:02:30]} 18. g3 {[%clk 0:01:46]}  f4 {[%clk 0:02:21]} 19. Bf1 {[%clk 0:01:42]}  b6 {[%clk 0:02:20]} 20. Ba3 {[%clk 0:01:41]}  Bd5 {[%clk 0:02:16]} 21. Nxd5 {[%clk 0:01:38]}  Qxd5 {[%clk 0:02:15]} 22. Bg2 {[%clk 0:01:38]}  f3 {[%clk 0:02:14]} 23. Bf1 {[%clk 0:01:38]}  Rhe8 {[%clk 0:02:12]} 24. Qd2 {[%clk 0:01:32]}  e4 {[%clk 0:02:10]} 25. Qf4 {[%clk 0:01:33]}  Re6 {[%clk 0:02:02]} 26. dxe4 {[%clk 0:01:23]}  Nxe4 {[%clk 0:02:01]} 27. Bd3 {[%clk 0:01:23]}  Rde8 {[%clk 0:01:51]} 28. Re3 {[%clk 0:01:19]}  Nxf2 {[%clk 0:01:43]} 29. Qf5 {[%clk 0:00:44]}  Qd7 {[%clk 0:00:53]} 30. Rxe6 {[%clk 0:00:18]}  Nh3+ {[%clk 0:00:53]} 31. Kh2 {[%clk 0:00:19]}  Rxe6 {[%clk 0:00:52]} 32. Qf8+ {[%clk 0:00:08]}  Kb7 {[%clk 0:00:52]} 33. Qf5 {[%clk 0:00:05]}  Nd4 {[%clk 0:00:48]} 34. Be4+ {[%clk 0:00:04]}  c6 {[%clk 0:00:45]} 35. Rd1 {[%clk 0:00:03]}  Ka6 {[%clk 0:00:40]} 36. Rxd4 {[%clk 0:00:02]}  Qxd4 {[%clk 0:00:39]} 37. Bd3+ {[%clk 0:00:02]}  b5 {[%clk 0:00:37]} 38. Bxb5+ {[%clk 0:00:03]}  Kb6 {[%clk 0:00:35]} 39. Qxe6 {[%clk 0:00:01]}  Qg1# {[%clk 0:00:35]} 0-1


[Site "https://www.chess.com"]

[Event "Titled Tuesday Blitz May 9 Early 2023"]
[White "Turzo, Attila"]
[Black "Makhmudov, Shukhrat"]
[WhiteFideId "704954"]
[BlackFideId "14200775"]
[WhiteElo "2475"]
[BlackElo "2135"]
[Result "0-1"]
[Round "09"]
[TimeControl "180+2"]
[Date "2023.05.09"]
[WhiteClock "0:00:00"]
[BlackClock "0:00:12"]

1. d4 {[%clk 0:02:48]}  Nf6 {[%clk 0:02:54]} 2. Nf3 {[%clk 0:02:48]}  d5 {[%clk 0:02:53]} 3. Bf4 {[%clk 0:02:48]}  c5 {[%clk 0:02:50]} 4. e3 {[%clk 0:02:49]}  Nc6 {[%clk 0:02:49]} 5. Nbd2 {[%clk 0:02:48]}  c4 {[%clk 0:02:37]} 6. c3 {[%clk 0:02:30]}  Bf5 {[%clk 0:02:35]} 7. b3 {[%clk 0:02:29]}  b5 {[%clk 0:02:25]} 8. Be2 {[%clk 0:02:26]}  e6 {[%clk 0:02:15]} 9. O-O {[%clk 0:02:26]}  h6 {[%clk 0:02:15]} 10. a4 {[%clk 0:02:20]}  a6 {[%clk 0:02:09]} 11. Ne5 {[%clk 0:02:07]}  Nxe5 {[%clk 0:02:06]} 12. Bxe5 {[%clk 0:02:06]}  Be7 {[%clk 0:02:01]} 13. Bf3 {[%clk 0:01:46]}  Bd3 {[%clk 0:01:55]} 14. Re1 {[%clk 0:01:46]}  O-O {[%clk 0:01:54]} 15. axb5 {[%clk 0:01:36]}  axb5 {[%clk 0:01:53]} 16. b4 {[%clk 0:01:31]}  Nd7 {[%clk 0:01:46]} 17. Bg3 {[%clk 0:01:25]}  f5 {[%clk 0:01:43]} 18. Qc1 {[%clk 0:01:24]}  Nb6 {[%clk 0:01:38]} 19. Bd1 {[%clk 0:01:16]}  Bd6 {[%clk 0:01:26]} 20. Rxa8 {[%clk 0:01:02]}  Nxa8 {[%clk 0:01:24]} 21. Qa1 {[%clk 0:00:48]}  Nc7 {[%clk 0:01:17]} 22. Qa5 {[%clk 0:00:44]}  Bxg3 {[%clk 0:01:14]} 23. hxg3 {[%clk 0:00:43]}  Qd6 {[%clk 0:01:13]} 24. Qa3 {[%clk 0:00:31]}  Ra8 {[%clk 0:01:12]} 25. Qb2 {[%clk 0:00:32]}  Qa6 {[%clk 0:01:12]} 26. Bh5 {[%clk 0:00:26]}  Qa2 {[%clk 0:01:04]} 27. Qc1 {[%clk 0:00:18]}  Kh7 {[%clk 0:00:54]} 28. Bd1 {[%clk 0:00:14]}  Qa3 {[%clk 0:00:42]} 29. Bf3 {[%clk 0:00:10]}  Qxc1 {[%clk 0:00:29]} 30. Rxc1 {[%clk 0:00:11]}  Ra2 {[%clk 0:00:29]} 31. Nf1 {[%clk 0:00:11]}  Ne8 {[%clk 0:00:24]} 32. Bd1 {[%clk 0:00:10]}  Nd6 {[%clk 0:00:24]} 33. Nh2 {[%clk 0:00:10]}  Ne4 {[%clk 0:00:24]} 34. Nf3 {[%clk 0:00:08]}  Nxf2 {[%clk 0:00:23]} 35. Ne5 {[%clk 0:00:04]}  Ne4 {[%clk 0:00:22]} 36. Bf3 {[%clk 0:00:03]}  Nxg3 {[%clk 0:00:20]} 37. Nc6 {[%clk 0:00:00]}  Be4 {[%clk 0:00:12]} 0-1


[Site "https://www.chess.com"]

[Event "Titled Tuesday Blitz May 9 Early 2023"]
[White "Rian, Kapriaga"]
[Black "Pourkashiyan, Atousa"]
[WhiteFideId "7103263"]
[BlackFideId "12502014"]
[WhiteElo "2323"]
[BlackElo "2228"]
[Result "0-1"]
[Round "09"]
[TimeControl "180+2"]
[Date "2023.05.09"]
[WhiteClock "0:00:00"]
[BlackClock "0:00:18"]

1. d4 {[%clk 0:02:35]}  Nf6 {[%clk 0:01:24]} 2. Nf3 {[%clk 0:02:34]}  e6 {[%clk 0:01:25]} 3. Bf4 {[%clk 0:02:33]}  d5 {[%clk 0:01:26]} 4. e3 {[%clk 0:02:33]}  Bd6 {[%clk 0:01:27]} 5. Ne5 {[%clk 0:02:31]}  O-O {[%clk 0:01:25]} 6. Nd2 {[%clk 0:02:30]}  c5 {[%clk 0:01:26]} 7. c3 {[%clk 0:02:29]}  Nc6 {[%clk 0:01:25]} 8. Bd3 {[%clk 0:02:28]}  Bxe5 {[%clk 0:01:23]} 9. dxe5 {[%clk 0:02:26]}  Nd7 {[%clk 0:01:23]} 10. h4 {[%clk 0:01:33]}  Ndxe5 {[%clk 0:01:12]} 11. Bxe5 {[%clk 0:01:30]}  Nxe5 {[%clk 0:01:13]} 12. Bxh7+ {[%clk 0:01:30]}  Kxh7 {[%clk 0:01:13]} 13. Qh5+ {[%clk 0:01:30]}  Kg8 {[%clk 0:01:14]} 14. Qxe5 {[%clk 0:01:29]}  b6 {[%clk 0:01:06]} 15. h5 {[%clk 0:01:28]}  Qf6 {[%clk 0:01:03]} 16. Qg3 {[%clk 0:01:10]}  Ba6 {[%clk 0:00:55]} 17. Nf3 {[%clk 0:01:00]}  Rad8 {[%clk 0:00:39]} 18. O-O-O {[%clk 0:00:58]}  Be2 {[%clk 0:00:38]} 19. Rde1 {[%clk 0:00:58]}  Bxf3 {[%clk 0:00:38]} 20. gxf3 {[%clk 0:00:58]}  d4 {[%clk 0:00:39]} 21. exd4 {[%clk 0:00:15]}  cxd4 {[%clk 0:00:39]} 22. cxd4 {[%clk 0:00:12]}  Rxd4 {[%clk 0:00:40]} 23. Qe5 {[%clk 0:00:07]}  Rc8+ {[%clk 0:00:35]} 24. Kb1 {[%clk 0:00:06]}  Qxe5 {[%clk 0:00:20]} 25. Rxe5 {[%clk 0:00:06]}  Rd2 {[%clk 0:00:21]} 26. Rg1 {[%clk 0:00:05]}  Rcc2 {[%clk 0:00:20]} 27. Reg5 {[%clk 0:00:04]}  Rxb2+ {[%clk 0:00:20]} 28. Kc1 {[%clk 0:00:00]}  Rdc2+ {[%clk 0:00:18]} 0-1


[Site "https://www.chess.com"]

[Event "Titled Tuesday Blitz May 9 Early 2023"]
[White "Rosenberg, Evan S"]
[Black "Salman, Pavel"]
[WhiteFideId "2019299"]
[BlackFideId "24153753"]
[WhiteElo "2270"]
[BlackElo "2187"]
[Result "1-0"]
[Round "09"]
[TimeControl "180+2"]
[Date "2023.05.09"]
[WhiteClock "0:00:35"]
[BlackClock "0:00:43"]

1. d4 {[%clk 0:03:00]}  Nf6 {[%clk 0:02:57]} 2. Nf3 {[%clk 0:03:01]}  c5 {[%clk 0:02:57]} 3. d5 {[%clk 0:03:00]}  g6 {[%clk 0:02:57]} 4. Nc3 {[%clk 0:02:59]}  Bg7 {[%clk 0:02:56]} 5. e4 {[%clk 0:03:00]}  d6 {[%clk 0:02:57]} 6. Bb5+ {[%clk 0:02:59]}  Nbd7 {[%clk 0:02:55]} 7. a4 {[%clk 0:03:00]}  O-O {[%clk 0:02:54]} 8. O-O {[%clk 0:02:58]}  a6 {[%clk 0:02:55]} 9. Be2 {[%clk 0:02:58]}  Ng4 {[%clk 0:02:54]} 10. h3 {[%clk 0:02:47]}  Nge5 {[%clk 0:02:53]} 11. Nxe5 {[%clk 0:02:48]}  Nxe5 {[%clk 0:02:52]} 12. Bg5 {[%clk 0:02:37]}  Rb8 {[%clk 0:02:49]} 13. Qd2 {[%clk 0:02:35]}  f5 {[%clk 0:02:43]} 14. exf5 {[%clk 0:02:07]}  Bxf5 {[%clk 0:02:40]} 15. a5 {[%clk 0:02:06]}  Rc8 {[%clk 0:02:14]} 16. g4 {[%clk 0:01:47]}  Bd7 {[%clk 0:02:13]} 17. f4 {[%clk 0:01:47]}  Nf7 {[%clk 0:02:13]} 18. Bh4 {[%clk 0:01:47]}  c4 {[%clk 0:02:05]} 19. Nd1 {[%clk 0:01:23]}  Rc5 {[%clk 0:01:59]} 20. Bf2 {[%clk 0:01:20]}  Rb5 {[%clk 0:01:56]} 21. Bxc4 {[%clk 0:01:20]}  Bxb2 {[%clk 0:01:48]} 22. Nxb2 {[%clk 0:01:18]}  Rxb2 {[%clk 0:01:48]} 23. Bb3 {[%clk 0:01:15]}  Bb5 {[%clk 0:01:43]} 24. Rfe1 {[%clk 0:01:15]}  Qc7 {[%clk 0:01:36]} 25. Bd4 {[%clk 0:01:07]}  Rxb3 {[%clk 0:01:34]} 26. cxb3 {[%clk 0:01:07]}  Nd8 {[%clk 0:01:18]} 27. Rac1 {[%clk 0:01:06]}  Qd7 {[%clk 0:01:17]} 28. f5 {[%clk 0:01:01]}  Rf7 {[%clk 0:01:10]} 29. fxg6 {[%clk 0:00:52]}  hxg6 {[%clk 0:01:09]} 30. Qh6 {[%clk 0:00:52]}  Rf6 {[%clk 0:00:58]} 31. Bxf6 {[%clk 0:00:51]}  exf6 {[%clk 0:00:59]} 32. Qxg6+ {[%clk 0:00:50]}  Kf8 {[%clk 0:01:00]} 33. Qxf6+ {[%clk 0:00:49]}  Nf7 {[%clk 0:00:59]} 34. Rc2 {[%clk 0:00:35]}  b6 {[%clk 0:00:43]} 35. Rf2 {[%clk 0:00:35]}  bxa5 {[%clk 0:00:43]} 36. Qh8# {[%clk 0:00:35]} 1-0


[Site "https://www.chess.com"]

[Event "Titled Tuesday Blitz May 9 Early 2023"]
[White "Wimalasuriya, Kasun M."]
[Black "Toktomushev, Teimur"]
[WhiteFideId "9906789"]
[BlackFideId "14176726"]
[WhiteElo "2241"]
[BlackElo "2116"]
[Result "0-1"]
[Round "09"]
[TimeControl "180+2"]
[Date "2023.05.09"]
[WhiteClock "0:01:38"]
[BlackClock "0:00:04"]

1. d4 {[%clk 0:02:52]}  d5 {[%clk 0:02:59]} 2. c4 {[%clk 0:02:51]}  e6 {[%clk 0:02:59]} 3. Nc3 {[%clk 0:02:51]}  Nf6 {[%clk 0:02:59]} 4. Nf3 {[%clk 0:02:51]}  Be7 {[%clk 0:03:00]} 5. Bf4 {[%clk 0:02:50]}  O-O {[%clk 0:03:00]} 6. e3 {[%clk 0:02:50]}  b6 {[%clk 0:03:00]} 7. cxd5 {[%clk 0:02:49]}  Nxd5 {[%clk 0:03:01]} 8. Nxd5 {[%clk 0:02:49]}  Qxd5 {[%clk 0:03:02]} 9. Bd3 {[%clk 0:02:48]}  Qa5+ {[%clk 0:02:52]} 10. Ke2 {[%clk 0:02:47]}  c5 {[%clk 0:02:43]} 11. dxc5 {[%clk 0:02:44]}  bxc5 {[%clk 0:02:33]} 12. Qc2 {[%clk 0:02:43]}  Ba6 {[%clk 0:02:31]} 13. Rhd1 {[%clk 0:02:41]}  Nc6 {[%clk 0:02:27]} 14. a3 {[%clk 0:02:41]}  Rfd8 {[%clk 0:02:08]} 15. Ne5 {[%clk 0:02:33]}  Nxe5 {[%clk 0:01:58]} 16. Bxe5 {[%clk 0:02:32]}  Rd5 {[%clk 0:00:51]} 17. Bc3 {[%clk 0:02:22]}  Bxd3+ {[%clk 0:00:43]} 18. Qxd3 {[%clk 0:02:16]}  Qb6 {[%clk 0:00:29]} 19. Qc4 {[%clk 0:02:15]}  Rad8 {[%clk 0:00:28]} 20. e4 {[%clk 0:02:14]}  R5d7 {[%clk 0:00:22]} 21. Rxd7 {[%clk 0:02:13]}  Rxd7 {[%clk 0:00:23]} 22. Rd1 {[%clk 0:02:13]}  Qb7 {[%clk 0:00:21]} 23. Rd3 {[%clk 0:01:59]}  Rxd3 {[%clk 0:00:17]} 24. Qxd3 {[%clk 0:01:59]}  Qc7 {[%clk 0:00:18]} 25. h3 {[%clk 0:01:58]}  c4 {[%clk 0:00:18]} 26. Qd4 {[%clk 0:01:57]}  f6 {[%clk 0:00:12]} 27. e5 {[%clk 0:01:57]}  f5 {[%clk 0:00:08]} 28. f4 {[%clk 0:01:57]}  Qc6 {[%clk 0:00:06]} 29. Kf1 {[%clk 0:01:56]}  h6 {[%clk 0:00:05]} 30. Qxa7 {[%clk 0:01:50]}  Bc5 {[%clk 0:00:05]} 31. Qb8+ {[%clk 0:01:47]}  Kh7 {[%clk 0:00:05]} 32. Qd8 {[%clk 0:01:41]}  Qe4 {[%clk 0:00:05]} 33. Qd2 {[%clk 0:01:41]}  Be3 {[%clk 0:00:05]} 34. Qd7 {[%clk 0:01:39]}  Qxf4+ {[%clk 0:00:03]} 35. Ke2 {[%clk 0:01:39]}  Qf2+ {[%clk 0:00:04]} 36. Kd1 {[%clk 0:01:39]}  Qxg2 {[%clk 0:00:04]} 37. Qxe6 {[%clk 0:01:39]}  Qf1+ {[%clk 0:00:03]} 38. Kc2 {[%clk 0:01:38]}  Qd3# {[%clk 0:00:04]} 0-1


[Site "https://www.chess.com"]

[Event "Titled Tuesday Blitz May 9 Early 2023"]
[White "Kiseleva, Arina"]
[Black "Redzisz, Michal"]
[WhiteFideId "4164989"]
[BlackFideId "21816107"]
[WhiteElo "1708"]
[BlackElo "2175"]
[Result "1/2-1/2"]
[Round "09"]
[TimeControl "180+2"]
[Date "2023.05.09"]
[WhiteClock "0:00:21"]
[BlackClock "0:00:04"]

1. d4 {[%clk 0:03:00]}  Nf6 {[%clk 0:02:57]} 2. c4 {[%clk 0:03:00]}  e6 {[%clk 0:02:57]} 3. Nf3 {[%clk 0:02:59]}  d5 {[%clk 0:02:57]} 4. Nc3 {[%clk 0:02:56]}  Be7 {[%clk 0:02:53]} 5. Bg5 {[%clk 0:02:55]}  O-O {[%clk 0:02:52]} 6. e3 {[%clk 0:02:48]}  b6 {[%clk 0:02:51]} 7. Qc2 {[%clk 0:02:45]}  Bb7 {[%clk 0:02:51]} 8. cxd5 {[%clk 0:02:44]}  Nxd5 {[%clk 0:02:47]} 9. Bxe7 {[%clk 0:02:43]}  Qxe7 {[%clk 0:02:46]} 10. e4 {[%clk 0:02:31]}  Nxc3 {[%clk 0:02:45]} 11. bxc3 {[%clk 0:02:30]}  c5 {[%clk 0:02:43]} 12. Bd3 {[%clk 0:02:30]}  Nc6 {[%clk 0:02:37]} 13. O-O {[%clk 0:02:07]}  cxd4 {[%clk 0:02:28]} 14. cxd4 {[%clk 0:02:08]}  Rfd8 {[%clk 0:02:12]} 15. e5 {[%clk 0:01:48]}  Nb4 {[%clk 0:01:03]} 16. Qe2 {[%clk 0:01:40]}  Nxd3 {[%clk 0:00:56]} 17. Qxd3 {[%clk 0:01:40]}  Bxf3 {[%clk 0:00:40]} 18. Qxf3 {[%clk 0:01:38]}  Rd5 {[%clk 0:00:40]} 19. Rfd1 {[%clk 0:01:34]}  Rad8 {[%clk 0:00:40]} 20. Qe4 {[%clk 0:01:29]}  Qc5 {[%clk 0:00:21]} 21. Qh4 {[%clk 0:00:55]}  h6 {[%clk 0:00:12]} 22. h3 {[%clk 0:00:51]}  Rxd4 {[%clk 0:00:12]} 23. Qxd8+ {[%clk 0:00:50]}  Rxd8 {[%clk 0:00:12]} 24. Rxd8+ {[%clk 0:00:50]}  Kh7 {[%clk 0:00:13]} 25. Re1 {[%clk 0:00:46]}  Qc3 {[%clk 0:00:11]} 26. Kf1 {[%clk 0:00:44]}  Qc4+ {[%clk 0:00:11]} 27. Kg1 {[%clk 0:00:43]}  Qxa2 {[%clk 0:00:10]} 28. Rd7 {[%clk 0:00:43]}  Qa5 {[%clk 0:00:08]} 29. Re3 {[%clk 0:00:41]}  Qa1+ {[%clk 0:00:04]} 30. Kh2 {[%clk 0:00:40]}  a5 {[%clk 0:00:04]} 31. Rxf7 {[%clk 0:00:39]}  a4 {[%clk 0:00:05]} 32. f4 {[%clk 0:00:38]}  a3 {[%clk 0:00:04]} 33. Rg3 {[%clk 0:00:37]}  a2 {[%clk 0:00:02]} 34. Rgxg7+ {[%clk 0:00:37]}  Kh8 {[%clk 0:00:02]} 35. Rh7+ {[%clk 0:00:32]}  Kg8 {[%clk 0:00:02]} 36. Rhg7+ {[%clk 0:00:20]}  Kh8 {[%clk 0:00:03]} 37. Rh7+ {[%clk 0:00:21]}  Kg8 {[%clk 0:00:03]} 38. Rhg7+ {[%clk 0:00:21]}  Kh8 {[%clk 0:00:04]} 1/2-1/2


[Site "https://www.chess.com"]

[Event "Titled Tuesday Blitz May 9 Early 2023"]
[White "Chemin, Justo Reinaldo"]
[Black "Vivas Zamora, Fabian Ernesto"]
[WhiteFideId "2101580"]
[BlackFideId "3902480"]
[WhiteElo "1940"]
[BlackElo "2244"]
[Result "0-1"]
[Round "09"]
[TimeControl "180+2"]
[Date "2023.05.09"]
[WhiteClock "0:00:00"]
[BlackClock "0:00:11"]

1. d4 {[%clk 0:03:00]}  Nf6 {[%clk 0:02:58]} 2. Nf3 {[%clk 0:03:00]}  g6 {[%clk 0:02:58]} 3. e3 {[%clk 0:03:00]}  Bg7 {[%clk 0:02:57]} 4. b3 {[%clk 0:03:00]}  O-O {[%clk 0:02:57]} 5. Bb2 {[%clk 0:03:01]}  c5 {[%clk 0:02:52]} 6. Nbd2 {[%clk 0:03:00]}  cxd4 {[%clk 0:02:45]} 7. exd4 {[%clk 0:02:58]}  d5 {[%clk 0:02:44]} 8. Bd3 {[%clk 0:02:56]}  Nc6 {[%clk 0:02:43]} 9. a3 {[%clk 0:02:56]}  Bf5 {[%clk 0:02:22]} 10. Bxf5 {[%clk 0:02:53]}  gxf5 {[%clk 0:02:23]} 11. O-O {[%clk 0:02:53]}  e6 {[%clk 0:02:20]} 12. Re1 {[%clk 0:02:50]}  Ne4 {[%clk 0:02:19]} 13. Nf1 {[%clk 0:02:42]}  Qb6 {[%clk 0:02:18]} 14. c3 {[%clk 0:02:31]}  Na5 {[%clk 0:02:14]} 15. N3d2 {[%clk 0:02:16]}  Nc4 {[%clk 0:01:23]} 16. bxc4 {[%clk 0:02:02]}  Qxb2 {[%clk 0:01:22]} 17. Nxe4 {[%clk 0:01:50]}  dxe4 {[%clk 0:01:08]} 18. Qc1 {[%clk 0:01:43]}  Qxc1 {[%clk 0:01:00]} 19. Rexc1 {[%clk 0:01:43]}  Rac8 {[%clk 0:00:36]} 20. Nd2 {[%clk 0:01:34]}  Bh6 {[%clk 0:00:35]} 21. Ra2 {[%clk 0:01:12]}  Bxd2 {[%clk 0:00:34]} 22. Rxd2 {[%clk 0:01:12]}  Rxc4 {[%clk 0:00:34]} 23. d5 {[%clk 0:01:07]}  Rd8 {[%clk 0:00:27]} 24. d6 {[%clk 0:00:54]}  Rc6 {[%clk 0:00:24]} 25. d7 {[%clk 0:00:51]}  Rc7 {[%clk 0:00:23]} 26. Rcd1 {[%clk 0:00:35]}  Kf8 {[%clk 0:00:23]} 27. f3 {[%clk 0:00:16]}  exf3 {[%clk 0:00:23]} 28. gxf3 {[%clk 0:00:15]}  Rxc3 {[%clk 0:00:24]} 29. Kf2 {[%clk 0:00:14]}  Rxa3 {[%clk 0:00:19]} 30. Rc1 {[%clk 0:00:10]}  Ke7 {[%clk 0:00:19]} 31. Rc7 {[%clk 0:00:08]}  Rb3 {[%clk 0:00:18]} 32. Kg3 {[%clk 0:00:00]}  a5 {[%clk 0:00:11]} 0-1


[Site "https://www.chess.com"]